bitfinex/quotes_SOLUSD_20240725
["timestamp","ask_amount","ask_price","bid_price","bid_amount"]
[1721925712105,1.02901295,171.89,171.81,5.8201]
[1721925712324,1.02901295,171.89,171.82,5.8199]
[1721925712325,46.02901295,171.89,171.82,5.8199]
[1721925713022,46.02901295,171.89,171.83,5.8194]
[1721925713202,45.0,171.89,171.77,3.62001863]
[1721925713404,32.94,171.9,171.84,5.8193]
[1721925713612,45.0,171.89,171.78,2.45591467]
[1721925713823,32.94,171.9,171.78,2.45591467]
[1721925714125,1.02901295,171.89,171.78,2.45591467]
[1721925714330,32.94,171.9,171.79,1.16385507]
[1721925714533,32.94,171.9,171.85,5.8187]
[1721925715227,1.02901295,171.89,171.8,2.45562877]
[1721925715524,32.94,171.9,171.8,2.45562877]
[1721925715708,1.02901295,171.89,171.83,5.8193]
[1721925715910,45.0,171.89,171.83,5.8193]
[1721925716107,45.0,171.89,171.84,5.8193]
[1721925717730,45.0,171.89,171.8,2.45562877]
[1721925717932,32.94,171.9,171.85,5.8187]
[1721925719526,46.02901295,171.89,171.82,5.82]
[1721925719726,46.02901295,171.89,171.8,8.27592877]
[1721925719928,46.02901295,171.89,171.8,2.45562877]
[1721925720430,46.02901295,171.89,171.85,5.819]
[1721925720628,46.02901295,171.89,171.8,2.45562877]
[1721925720629,32.94,171.9,171.8,2.45562877]
[1721925720828,32.94,171.9,171.85,5.8189]
[1721925721028,45.0,171.89,171.8,2.45562877]
[1721925721330,32.94,171.9,171.85,5.8189]
[1721925721719,32.94,171.9,171.84,5.8192]
[1721925721918,32.94,171.9,171.82,5.82]
[1721925722122,5.8187,171.86,171.76,6.98570101]
[1721925722427,46.02901295,171.89,171.81,5.8203]
[1721925722428,1.02901295,171.88,171.81,5.8203]
[1721925722934,314.86261295,171.88,171.79,5.8207]
[1721925723141,32.94,171.86,171.76,2.45620064]
[1721925723432,46.02901295,171.85,171.75,6.4699]
[1721925723619,46.02901295,171.85,171.76,5.8217]
[1721925723830,15.3643,171.84,171.75,6.4699]
[1721925724015,32.94,171.82,171.75,6.4699]
[1721925724230,1.02901295,171.81,171.75,6.4699]
[1721925724408,45.0,171.81,171.75,6.4699]
[1721925724921,45.0,171.81,171.76,5.822]
[1721925725121,45.0,171.81,171.75,6.4699]
[1721925725604,45.0,171.81,171.77,5.8215]
[1721925725812,45.0,171.8,171.73,5.823]
[1721925726008,1.02901295,171.79,171.73,5.823]
[1721925726532,1.02901295,171.79,171.72,5.8234]
[1721925726833,1.02901295,171.79,171.7,6.536]
[1721925727038,45.0,171.81,171.77,5.8216]
[1721925727335,42.69852152,171.88,171.83,5.8194]
[1721925727336,313.8336,171.88,171.83,5.8194]
[1721925727524,316.50042589,171.88,171.83,5.8194]
[1721925727716,316.50042589,171.88,171.72,1.1643398]
[1721925727921,316.50042589,171.88,171.82,5.8198]
[1721925728232,16.5276,171.89,171.74,1.16408512]
[1721925728437,1.02901295,171.88,171.75,2.45634365]
[1721925729030,1.02901295,171.88,171.76,6.0215]
[1721925729234,1.02901295,171.87,171.82,5.8197]
[1721925729443,1.02901295,171.87,171.82,5.8199]
[1721925729736,1.02901295,171.89,171.84,5.8191]
[1721925730038,38.97027169,171.9,171.78,1.16399212]
[1721925730221,32.94,171.9,171.79,2.45577171]
[1721925730410,32.94,171.9,171.86,5.8186]
[1721925730614,32.94,171.9,171.84,5.8193]
[1721925730814,32.94,171.9,171.85,5.8188]
[1721925731034,313.8336,171.91,171.86,5.8186]
[1721925731333,313.8336,171.91,171.85,5.8189]
[1721925731635,313.8336,171.91,171.84,5.819]
[1721925731636,1.02901295,171.9,171.84,5.819]
[1721925731819,1.02901295,171.89,171.84,5.819]
[1721925732021,1.02901295,171.89,171.81,5.8203]
[1721925732227,1.02901295,171.89,171.79,2.45577171]
[1721925732419,91.84661295,171.89,171.79,5.8207]
[1721925732720,5.8182,171.88,171.76,6.0215]
[1721925732934,32.94,171.86,171.76,6.0215]
[1721925733132,1.02901295,171.85,171.76,6.0215]
[1721925733325,46.02901295,171.85,171.76,6.0215]
[1721925734015,46.02901295,171.85,171.78,5.8211]
[1721925734216,15.5023,171.84,171.72,6.0511]
[1721925734538,46.02901295,171.83,171.72,6.0511]
[1721925734735,1.02901295,171.82,171.78,5.8213]
[1721925735114,1.02901295,171.82,171.72,6.0511]
[1721925735115,46.02901295,171.83,171.72,6.0511]
[1721925735341,45.0,171.83,171.72,9.67227758]
[1721925735745,329.3359,171.84,171.82,5.82]
[1721925735929,15.5023,171.84,171.72,8.50787279]
[1721925736133,15.5023,171.84,171.8,5.8204]
[1721925736447,15.5023,171.84,171.79,5.821]
[1721925736640,15.5023,171.84,171.78,5.8213]
[1721925737018,45.0,171.83,171.78,5.8213]
[1721925737539,20.0,171.82,171.73,2.45662973]
[1721925737751,46.02901295,171.81,171.74,5.8226]
[1721925738119,46.02901295,171.81,171.7,6.2544]
[1721925738443,46.02901295,171.81,171.74,5.8227]
[1721925738640,46.02901295,171.81,171.76,5.8217]
[1721925738843,45.0,171.81,171.77,5.8217]
[1721925739362,45.0,171.81,171.76,5.822]
[1721925739522,1.02901295,171.8,171.76,5.822]
[1721925739723,45.0,171.81,171.76,5.822]
[1721925740823,45.0,171.81,171.71,1.16451232]
[1721925741146,46.02901295,171.81,171.75,5.8224]
[1721925741323,46.02901295,171.81,171.7,6.2544]
[1721925741324,51.84941295,171.81,171.72,5.8233]
[1721925741649,51.84941295,171.81,171.7,6.2544]
[1721925741650,46.02901295,171.81,171.7,6.2544]
[1721925741839,46.02901295,171.81,171.76,5.8219]
[1721925742245,45.0,171.81,171.77,5.8216]
[1721925742432,45.0,171.81,171.71,1.16442299]
[1721925742756,46.02901295,171.81,171.7,6.2544]
[1721925742928,45.0,171.81,171.78,5.8212]
[1721925743127,45.0,171.81,171.71,1.16436485]
[1721925743441,46.02901295,171.81,171.76,5.822]
[1721925743642,15.5023,171.84,171.71,1.16440793]
[1721925743832,15.5023,171.84,171.72,2.45677279]
[1721925744023,6.03708324,171.88,171.73,1.1641575]
[1721925744231,330.1845,171.89,171.85,5.8189]
[1721925744456,19.02185327,171.89,171.85,5.8189]
[1721925744945,19.02185327,171.89,171.86,5.8185]
[1721925744946,16.3509,171.89,171.86,5.8185]
[1721925745948,6.82336322,171.91,171.87,5.8182]
[1721925746154,6.82336322,171.91,171.8,7.17484733]
[1721925746354,6.82336322,171.91,171.81,3.61927947]
[1721925746355,5.8186,171.91,171.81,3.61927947]
[1721925746657,5.8186,171.91,171.81,2.45548584]
[1721925747158,5.8186,171.91,171.86,5.8183]
[1721925747535,6.84761295,171.91,171.81,2.45548584]
[1721925747730,6.84761295,171.91,171.83,5.8194]
[1721925747943,6.84761295,171.91,171.8,6.011]
[1721925748143,6.84761295,171.91,171.84,5.8192]
[1721925748343,45.0,171.9,171.84,5.8192]
[1721925748534,1.02901295,171.89,171.84,5.8192]
[1721925749035,1.02901295,171.89,171.83,5.8196]
[1721925749231,1.02901295,171.89,171.82,5.8199]
[1721925749630,1.02901295,171.89,171.83,5.8195]
[1721925750036,1.02901295,171.89,171.76,6.4917]
[1721925750037,391.7736,171.9,171.77,1.16404772]
[1721925750248,6.99580529,171.89,171.78,2.45591467]
[1721925750759,5.8186,171.91,171.78,2.45591467]
[1721925750760,5.8186,171.91,171.79,1.16393269]
[1721925751066,8.0242982,171.9,171.8,3.61941808]
[1721925751352,6.99528525,171.89,171.85,5.8186]
[1721925751558,6.99528525,171.89,171.8,2.45562877]
[1721925751758,6.84761295,171.91,171.86,5.8186]
[1721925752054,51.99524525,171.9,171.84,5.819]
[1721925752354,8.0242582,171.89,171.81,5.8202]
[1721925752661,5.8191,171.85,171.76,5.8218]
[1721925752857,46.02901295,171.84,171.77,5.8214]
[1721925753069,51.84861295,171.84,171.74,5.8224]
[1721925753267,48.8133,171.78,171.67,6.469]
[1721925753440,321.85937334,171.77,171.63,6.469]
[1721925753632,1.02901295,171.76,171.63,8.92706108]
[1721925753870,358.8336,171.77,171.64,1.16488957]
[1721925754160,7.00041562,171.76,171.65,1.16485967]
[1721925754476,45.0,171.75,171.65,1.16485967]
[1721925754662,45.0,171.75,171.71,5.8237]
[1721925755159,313.8336,171.77,171.75,5.8221]
[1721925755359,15.8733,171.78,171.75,5.8221]
[1721925755561,45.0,171.77,171.75,5.8221]
[1721925755771,15.8733,171.78,171.75,5.8223]
[1721925756132,15.8733,171.78,171.63,10.0919049]
[1721925756362,15.8733,171.78,171.64,67.45791787]
[1721925756535,15.8733,171.78,171.73,5.8227]
[1721925756737,15.8733,171.78,171.74,5.8226]
[1721925756938,15.8733,171.78,171.75,5.8223]
[1721925757338,15.8733,171.78,171.75,5.8224]
[1721925757559,15.8733,171.78,171.76,5.8219]
[1721925757946,1.02901295,171.81,171.65,3.62235219]
[1721925758250,16.3184,171.83,171.78,5.821]
[1721925758452,6.9985384,171.82,171.79,5.8209]
[1721925758637,6.9985384,171.82,171.68,1.16428347]
[1721925758842,6.9985384,171.82,171.79,5.8209]
[1721925759268,1.02901295,171.81,171.72,6.0539]
[1721925759441,16.3184,171.83,171.8,5.8207]
[1721925759649,5.8209,171.82,171.8,5.8207]
[1721925759849,16.3184,171.83,171.8,5.8207]
[1721925760151,16.3184,171.83,171.82,5.82]
[1721925760348,16.3184,171.83,171.81,5.8203]
[1721925760873,15.9802,171.88,171.72,9.67488799]
[1721925761076,6.99578611,171.87,171.84,5.8191]
[1721925761249,2.0333326,171.92,171.85,5.819]
[1721925761583,6.99577072,171.89,171.85,5.819]
[1721925761870,20.0,171.88,171.8,5.8204]
[1721925762072,8.02478367,171.87,171.79,5.8209]
[1721925762260,20.0,171.85,171.77,5.8214]
[1721925762455,8.02478367,171.84,171.73,2.45662973]
[1721925762773,42.50007072,171.83,171.77,5.8216]
[1721925762983,8.02478367,171.82,171.77,5.8216]
[1721925763155,65.0,171.81,171.72,6.0539]
[1721925763471,1.02901295,171.8,171.74,5.8226]
[1721925763681,1.02901295,171.8,171.68,6.5339]
[1721925763853,21.02901295,171.8,171.68,8.99124519]
[1721925764056,20.0,171.8,171.76,5.8217]
[1721925764765,20.0,171.8,171.77,5.8215]
[1721925764959,20.0,171.8,171.78,5.8211]
[1721925765168,32.94,171.82,171.78,5.8211]
[1721925765355,71.99828772,171.81,171.76,5.822]
[1721925765555,65.0,171.81,171.76,5.822]
[1721925765751,65.0,171.81,171.74,5.8224]
[1721925765956,8.02771179,171.8,171.74,5.8224]
[1721925766169,73.02771179,171.79,171.74,5.8224]
[1721925766453,73.02771179,171.79,171.68,6.5339]
[1721925766454,45.0,171.78,171.68,6.5339]
[1721925766667,28.02898373,171.77,171.71,5.8236]
[1721925766865,53.0292045,171.76,171.72,5.8232]
[1721925767049,45.0,171.76,171.73,5.823]
[1721925767957,45.0,171.76,171.72,5.8233]
[1721925768253,20.0,171.77,171.68,6.5339]
[1721925768456,1.00485859,171.79,171.69,1.16482454]
[1721925768656,6.99939459,171.78,171.73,5.8227]
[1721925768861,65.0,171.77,171.73,5.8227]
[1721925769069,65.0,171.77,171.74,5.8225]
[1721925769269,1.02901295,171.8,171.75,5.8223]
[1721925769583,6.99955632,171.79,171.76,5.822]
[1721925769878,20.0,171.81,171.69,1.16453427]
[1721925770050,1.02901295,171.8,171.68,6.5339]
[1721925770258,1.02901295,171.79,171.75,5.8221]
[1721925770674,21.02901295,171.79,171.75,5.8221]
[1721925770873,21.02901295,171.79,171.76,5.822]
[1721925771064,6.5339,171.8,171.68,7.6983912]
[1721925771273,15.5043,171.83,171.8,5.8206]
[1721925771478,380.5,171.85,171.7,1.1641402]
[1721925771657,380.5,171.84,171.83,5.8197]
[1721925771854,380.5,171.86,171.74,6.0999]
[1721925772160,380.5,171.85,171.84,5.8191]
[1721925772363,21.4046,171.87,171.85,5.8187]
[1721925772666,6.9961218,171.86,171.83,5.8194]
[1721925772877,1.02901295,171.85,171.83,5.8194]
[1721925773188,15.5849,171.87,171.76,1.1639744]
[1721925773366,380.5,171.86,171.77,2.45605765]
[1721925773877,380.5,171.86,171.83,5.8194]
[1721925774060,380.5,171.85,171.84,5.8193]
[1721925775463,15.5743,171.92,171.79,6.0713]
[1721925775668,4.76474515,171.97,171.91,5.8169]
[1721925775874,6.99382018,171.96,171.8,3.61922638]
[1721925776181,6.99382018,171.96,171.92,5.8166]
[1721925776557,1.02901295,171.95,171.9,5.817]
[1721925776761,6.99382018,171.94,171.9,5.817]
[1721925777166,6.99382018,171.94,171.91,5.8169]
[1721925777564,16.60331295,171.97,171.82,1.16343616]
[1721925777884,26.99376476,171.96,171.83,2.45520004]
[1721925778085,85.96277771,171.95,171.83,2.45520004]
[1721925778379,6.99376476,171.94,171.8,20.0]
[1721925778585,46.02901295,171.93,171.81,1.16383926]
[1721925778758,8.02277771,171.92,171.8,20.0]
[1721925779075,1.02901295,171.92,171.8,20.0]
[1721925779277,1.02901295,171.92,171.81,2.45548584]
[1721925779857,1.02901295,171.92,171.89,5.8176]
[1721925780168,32.94,171.91,171.81,2.45548584]
[1721925780356,32.94,171.91,171.79,6.0713]
[1721925780357,46.02901295,171.9,171.79,6.0713]
[1721925780554,1.02901295,171.89,171.86,5.8184]
[1721925780961,45.0,171.9,171.87,5.8183]
[1721925781180,389.83756487,171.99,171.8,1.16384476]
[1721925781383,6.99409988,171.96,171.95,5.8156]
[1721925781689,1.02901295,172.01,171.82,6.1897]
[1721925781890,6.99284746,171.96,171.95,5.8156]
[1721925782062,6.99284746,171.96,171.94,5.8159]
[1721925782261,1.02901295,172.01,171.83,48.61848743]
[1721925782588,6.9931592,171.96,171.93,5.816]
[1721925783165,1.02901295,171.95,171.84,2.45505716]
[1721925783392,1.02901295,171.95,171.87,5.8183]
[1721925783574,6.99388129,171.94,171.88,5.8178]
[1721925783769,6.99388129,171.94,171.84,2.45505716]
[1721925783770,45.0,171.93,171.84,2.45505716]
[1721925784088,45.0,171.93,171.9,5.8172]
[1721925784390,45.0,171.93,171.89,5.8176]
[1721925784799,45.0,171.93,171.9,5.8173]
[1721925785381,1.02901295,171.96,171.83,1.16359483]
[1721925785590,1.02901295,171.96,171.84,2.45505716]
[1721925785591,45.0,171.96,171.84,2.45505716]
[1721925785871,15.5743,171.97,171.94,5.8156]
[1721925786184,6.99348685,171.96,171.94,5.8156]
[1721925786385,6.99348685,171.96,171.85,1.16339224]
[1721925786592,16.60331295,171.97,171.93,5.8162]
[1721925786765,15.5743,171.97,171.86,1.16343664]
[1721925787397,15.5743,171.97,171.92,5.8164]
[1721925788393,45.0,171.96,171.91,5.8168]
[1721925788599,45.0,171.96,171.86,1.16352803]
[1721925788895,15.5743,171.97,171.86,1.16352803]
[1721925789101,15.5743,171.97,171.96,5.8153]
[1721925789292,15.5743,171.97,171.86,3.61829949]
[1721925789508,15.5743,171.97,171.95,5.8156]
[1721925789967,1.02901295,171.96,171.92,5.8165]
[1721925790169,15.5743,171.97,171.92,5.8165]
[1721925790467,15.5743,171.97,171.93,5.8162]
[1721925790668,15.5743,171.97,171.94,5.8159]
[1721925790863,15.5743,171.97,171.93,5.8162]
[1721925791088,15.5743,171.97,171.86,3.61812877]
[1721925791299,15.5743,171.97,171.95,5.8155]
[1721925791477,2.65035978,172.01,171.97,5.8146]
[1721925791791,16.37657808,172.02,171.87,6.1682]
[1721925791989,19.08558206,172.02,171.88,67.45448582]
[1721925792298,1.02901295,172.01,171.97,5.8149]
[1721925792477,1.02901295,172.01,171.89,2.45434303]
[1721925792678,20.0,172.0,171.89,2.45434303]
[1721925792891,118.96901295,171.99,171.87,6.1682]
[1721925793067,13.83738364,171.98,171.82,6.1682]
[1721925793269,45.0,171.97,171.82,8.62354293]
[1721925793488,1.02901295,171.96,171.82,8.62354293]
[1721925793697,1.02901295,171.95,171.82,8.62354293]
[1721925794198,45.0,171.97,171.83,3.61878588]
[1721925794199,1.02901295,171.96,171.83,3.61878588]
[1721925794495,46.02901295,171.97,171.92,5.8165]
[1721925794995,45.0,171.96,171.92,5.8165]
[1721925795199,1.02901295,171.97,171.92,5.8165]
[1721925795788,1.02901295,171.97,171.91,5.8169]
[1721925796187,6.84401295,171.97,171.88,5.8178]
[1721925796400,15.975,171.95,171.84,2.45505716]
[1721925796702,46.02901295,171.94,171.9,5.8172]
[1721925796904,15.975,171.95,171.84,2.45505716]
[1721925797111,17.00401295,171.95,171.84,2.45505716]
[1721925797702,45.0,171.94,171.9,5.817]
[1721925797896,45.0,171.94,171.84,2.45505716]
[1721925797897,1.02901295,171.93,171.84,2.45505716]
[1721925798297,1.02901295,171.92,171.88,5.8179]
[1721925798807,1.02901295,171.92,171.86,5.8184]
[1721925799003,45.0,171.94,171.9,5.8173]
[1721925799205,45.0,171.94,171.83,1.16354464]
[1721925799523,46.02901295,171.94,171.9,5.8173]
[1721925799715,45.0,171.94,171.9,5.8173]
[1721925799910,45.0,171.94,171.88,5.8179]
[1721925800115,1.02901295,171.93,171.88,5.8179]
[1721925800303,1.02901295,171.92,171.82,6.1682]
[1721925800618,1.02901295,171.92,171.88,5.8179]
[1721925800812,1.02901295,171.93,171.88,5.8179]
[1721925800988,46.02901295,171.94,171.82,6.1682]
[1721925801410,46.02901295,171.94,171.89,5.8176]
[1721925802209,67.03209683,171.94,171.78,6.1284]
[1721925802408,67.03209683,171.94,171.87,5.818]
[1721925802602,47.03209683,171.94,171.87,5.818]
[1721925802794,47.03209683,171.94,171.89,5.8174]
[1721925803012,1.02901295,171.93,171.79,1.16376607]
[1721925803200,15.975,171.95,171.9,5.8172]
[1721925803201,1.02901295,171.92,171.9,5.8172]
[1721925803513,17.00401295,171.95,171.91,5.8169]
[1721925803922,17.00401295,171.95,171.8,3.61925457]
[1721925804138,17.00401295,171.95,171.81,2.45548584]
[1721925804139,15.975,171.95,171.81,2.45548584]
[1721925804300,15.2428,171.99,171.87,6.5604]
[1721925804500,6.9930368,171.98,171.88,20.0]
[1721925804818,1.02901295,171.98,171.94,5.8159]
[1721925805018,1.02901295,171.98,171.87,9.01502863]
[1721925805208,1.02901295,171.98,171.87,2.45462863]
[1721925805405,6.99339538,171.97,171.82,6.0053]
[1721925805717,1.02901295,171.96,171.93,5.8161]
[1721925805918,50.82912433,171.99,171.93,5.8161]
[1721925806227,6.99342472,171.98,171.93,5.8161]
[1721925806516,6.99342472,171.98,171.94,5.8159]
[1721925806704,6.99342472,171.98,171.83,23.61881095]
[1721925806705,1.02901295,171.97,171.83,23.61881095]
[1721925807048,15.2428,171.99,171.98,5.8146]
[1721925807228,15.2428,171.99,171.86,1.1630264]
[1721925807520,1.02901295,171.98,171.87,2.45462863]
[1721925807729,15.2428,171.99,171.87,23.61767723]
[1721925808017,15.2428,171.99,171.96,5.815]
[1721925808412,15.2428,171.99,171.87,22.45462863]
[1721925809125,15.2428,171.99,171.88,45.0]
[1721925809312,15.2428,171.99,171.89,20.0]
[1721925809520,15.2428,171.99,171.9,2.45420025]
[1721925810398,15.2428,171.99,171.9,3.61726675]
[1721925810826,15.2428,171.99,171.91,6.5039]
[1721925811005,15.2428,171.99,171.92,23.61678715]
[1721925811206,15.2428,171.99,171.92,22.45391474]
[1721925811532,15.1784,172.03,171.93,3.61666841]
[1721925811707,15.1784,172.08,171.94,2.45362931]
[1721925811906,15.1784,172.08,171.95,1.16252573]
[1721925812106,15.1784,172.08,171.96,3.61577544]
[1721925812306,15.1784,172.08,171.97,2.45320127]
[1721925812609,15.1784,172.08,171.98,1.16244153]
[1721925812810,15.1784,172.08,171.99,1.16238136]
[1721925813605,15.9835762,172.12,172.0,6.3345]
[1721925813803,15.9835762,172.12,172.01,21.16232037]
[1721925814106,15.9835762,172.12,172.02,1.16222619]
[1721925814312,15.9835762,172.12,172.02,46.16222619]
[1721925814522,15.9835762,172.12,172.02,45.0]
[1721925814841,15.9835762,172.12,172.03,67.45234565]
[1721925815007,15.9835762,172.12,172.03,22.45234565]
[1721925815518,1.02901295,172.11,172.03,2.45234565]
[1721925815827,1.02901295,172.1,172.03,2.45234565]
[1721925816003,6.6289,172.09,172.03,2.45234565]
[1721925816206,46.02901295,172.08,172.03,2.45234565]
[1721925816406,1.02901295,172.07,171.96,6.6342]
[1721925817310,46.02901295,172.08,171.96,6.6342]
[1721925817621,1.02901295,172.07,171.96,6.6342]
[1721925818113,46.02901295,172.08,171.96,6.6342]
[1721925818611,1.02901295,172.07,171.96,6.6342]
[1721925819824,15.227,172.06,171.92,6.0989]
[1721925820037,15.227,172.06,171.93,68.61652502]
[1721925820343,46.02901295,172.05,171.94,2.45362931]
[1721925820505,1.02901295,172.04,171.94,2.45362931]
[1721925820830,1.02901295,172.04,171.92,6.0989]
[1721925821612,1.02901295,172.04,171.88,6.585]
[1721925821931,20.0,172.03,171.88,6.585]
[1721925822144,6.2697,172.0,171.88,9.03948582]
[1721925822447,46.02901295,171.99,171.88,9.03948582]
[1721925822613,1.02901295,171.98,171.88,9.03948582]
[1721925823119,45.0,171.99,171.88,9.03948582]
[1721925823432,6.2697,172.0,171.89,1.16329031]
[1721925823636,15.7108,172.01,171.9,3.61710782]
[1721925823804,15.7108,172.01,171.9,68.61710782]
[1721925824004,15.7108,172.01,171.91,2.45405749]
[1721925824210,15.7108,172.01,171.92,1.16289718]
[1721925824409,15.7108,172.01,171.93,1.16289488]
[1721925824632,1.02901295,172.0,171.91,2.45405749]
[1721925824836,1.02901295,172.0,171.83,1.16317235]
[1721925824837,46.02901295,172.0,171.83,1.16317235]
[1721925825011,46.02901295,172.0,171.84,8.62315716]
[1721925825214,46.02901295,172.0,171.85,2.4549143]
[1721925826225,46.02901295,172.0,171.86,1.16336738]
[1721925826532,46.02901295,172.0,171.86,3.61813884]
[1721925826738,46.02901295,172.0,171.94,5.8158]
[1721925827063,46.02901295,172.0,171.95,5.8156]
[1721925827338,46.02901295,172.0,171.86,23.61803481]
[1721925827634,46.02901295,172.0,171.86,22.45477146]
[1721925827806,46.02901295,172.0,171.86,2.45477146]
[1721925828012,84.78301295,172.0,171.86,2.45477146]
[1721925828239,78.96901295,172.0,171.92,5.8166]
[1721925828628,78.96901295,172.0,171.86,2.45477146]
[1721925828809,78.96901295,172.0,171.94,5.8156]
[1721925829013,6.1681,171.99,171.94,5.8156]
[1721925829212,45.0,171.98,171.94,5.8156]
[1721925830021,45.0,171.98,171.95,5.8155]
[1721925830225,15.7108,172.01,171.86,3.61806699]
[1721925830419,45.0,172.0,171.87,2.45462863]
[1721925830618,1.02901295,171.99,171.87,2.45462863]
[1721925830945,1.02901295,171.98,171.93,5.8162]
[1721925831246,45.0,172.0,171.95,5.8153]
[1721925831616,1.02901295,171.99,171.96,5.8151]
[1721925831840,45.0,172.0,171.97,5.8149]
[1721925832016,21.8789,172.01,171.98,5.8144]
[1721925832217,15.7108,172.01,171.97,5.8149]
[1721925832412,15.7108,172.01,171.98,5.8146]
[1721925832633,15.7108,172.01,171.88,1.1631001]
[1721925832939,16.73981295,172.01,171.89,2.45434303]
[1721925833326,15.7108,172.01,171.9,1.16307748]
[1721925836229,16.73981295,172.01,171.89,2.45434303]
[1721925837037,45.0,172.0,171.89,2.45434303]
[1721925837253,1.02901295,171.99,171.84,6.1681]
[1721925837424,50.8142,172.0,171.84,8.62315716]
[1721925837425,1.02901295,171.98,171.84,8.62315716]
[1721925837632,1.02901295,171.98,171.93,5.8161]
[1721925837950,1.02901295,171.98,171.94,5.8159]
[1721925838129,1.02901295,171.99,171.94,5.8159]
[1721925838325,1.02901295,171.99,171.85,1.1633555]
[1721925838519,1.02901295,171.98,171.93,5.8163]
[1721925838923,1.02901295,171.99,171.93,5.8163]
[1721925839150,46.02901295,172.0,171.84,9.7865705]
[1721925839453,1.02901295,171.99,171.85,22.4549143]
[1721925839749,45.0,172.0,171.86,2.45477146]
[1721925839750,1.02901295,171.98,171.86,2.45477146]
[1721925839931,1.02901295,171.98,171.94,5.8159]
[1721925840135,1.02901295,171.99,171.94,5.8159]
[1721925840341,48.6508,172.01,171.96,5.815]
[1721925840541,49.67981295,172.01,171.96,5.815]
[1721925840735,75.49341295,172.01,171.93,5.8162]
[1721925840935,55.49341295,172.01,171.93,5.8162]
[1721925841535,49.67981295,172.01,171.86,3.61811011]
[1721925841853,45.0,172.0,171.94,5.8159]
[1721925842067,45.0,172.0,171.86,2.45477146]
[1721925842239,29.29,171.99,171.86,2.45477146]
[1721925842553,46.02901295,171.98,171.86,3.61815164]
[1721925842756,1.02901295,171.98,171.86,47.45477146]
[1721925843052,1.02901295,171.98,171.95,5.8153]
[1721925843555,16.0207,171.97,171.86,2.45477146]
[1721925843760,75.31901295,171.96,171.86,2.45477146]
[1721925843951,7.47151295,171.95,171.8,6.03387627]
[1721925844253,15.969,171.92,171.8,2.45562877]
[1721925844421,29.29,171.9,171.84,5.8191]
[1721925844626,1.02901295,171.89,171.84,5.8193]
[1721925844828,46.02901295,171.89,171.85,5.819]
[1721925845023,46.02901295,171.89,171.86,5.8186]
[1721925845227,46.02901295,171.89,171.84,5.819]
[1721925846127,35.7325,171.87,171.73,7.73827026]
[1721925846346,35.7325,171.87,171.81,5.8203]
[1721925846347,46.02901295,171.86,171.81,5.8203]
[1721925846561,1.02901295,171.85,171.8,5.8206]
[1721925846730,1.02901295,171.85,171.81,5.8203]
[1721925847256,1.02901295,171.85,171.71,6.3457]
[1721925847435,1.02901295,171.85,171.71,8.80261586]
[1721925847749,15.969,171.84,171.77,5.8214]
[1721925847954,46.02901295,171.83,171.71,2.45691586]
[1721925848136,1.02901295,171.82,171.79,5.8207]
[1721925848326,1.02901295,171.82,171.78,5.821]
[1721925849940,1.02901295,171.82,171.71,2.45691586]
[1721925850140,1.02901295,171.82,171.67,6.3457]
[1721925850635,1.02901295,171.82,171.74,5.8224]
[1721925850828,1.02901295,171.82,171.75,5.8222]
[1721925851037,1.02901295,171.82,171.62,6.03123149]
[1721925851038,15.2565,171.79,171.62,7.19582445]
[1721925851354,15.2565,171.76,171.59,6.3832]
[1721925851559,1.02901295,171.75,171.59,6.3832]
[1721925851760,46.02901295,171.75,171.59,6.3832]
[1721925851959,46.02901295,171.75,171.6,2.45849081]
[1721925852465,46.02901295,171.75,171.6,3.62353861]
[1721925852636,46.02901295,171.75,171.6,2.45849081]
[1721925852842,6.6258,171.74,171.6,2.45849081]
[1721925853040,46.02901295,171.73,171.61,1.16515721]
[1721925853556,45.0,171.73,171.61,3.62343436]
[1721925853761,6.6258,171.74,171.61,3.62343436]
[1721925854360,46.02901295,171.73,171.61,2.45834755]
[1721925854656,47.03330852,171.73,171.61,3.62345003]